Workbook

Sheet 加权平均汇总表
A1: 质量与标准化发展项目加权平均汇总表
A2: 专项资金三级项目名称 | D2: 市场监督管理局 | G2: 总预算
D3: 2800 | G3: 2800.00
D4: 标准化资助奖励项目 | E4: 产品质量计量监督抽查项目 | F4: 质量发展项目
A5: 预算金额（万元） | D5: 1800 | E5: 840 | F5: 160 | G5: =SUM(D5:F5) -> 2800
A6: 占比 | D6: =ROUND(D5/2800.4,4) -> 64.28% | E6: =ROUND(E5/2800.4,4) -> 30.00% | F6: =ROUND(F5/2800.4,4) -> 5.71% | G6: =SUM(D6:F6) -> 100%
A8: 质量与标准化发展专项资金项目得分表
A9: 专项资金 | D9: 标准化资助奖励项目 | E9: 产品质量计量监督抽查项目 | F9: 质量发展项目 | G9: 加权得分
A10: 决策 | B10: 项目立项 | C10: 立项依据充分性 | D10: 3 | E10: 3 | F10: 3 | G10: =ROUND(D6*D10+E6*E10+F6*F10,2) -> 3.00
C11: 立项程序 规范性 | D11: 3 | E11: 3 | F11: 3 | G11: =ROUND(D6*D11+E6*E11+F6*F11,2) -> 3.00
B12: 绩效目标 | C12: 绩效目标 合理性 | D12: 2.25 | E12: 2 | F12: 2.2 | G12: =ROUND(D6*D12+E6*E12+F6*F12,2) -> 2.17
C13: 绩效指标 明确性 | D13: 2 | E13: 2 | F13: 2 | G13: =ROUND(D6*D13+E6*E13+F6*F13,2) -> 2.00
B14: 资金投入 | C14: 预算编制 科学性 | D14: 3 | E14: 4 | F14: 4 | G14: =ROUND(SUMPRODUCT(D14:F14,D6:F6),2) -> 3.36
C15: 资金分配 合理性 | D15: 3 | E15: 2 | F15: 3 | G15: =ROUND(D6*D15+E6*E15+F6*F15,2) -> 2.7
A16: 过程 | B16: 资金管理 | C16: 资金到位率 | D16: 2 | E16: 2 | F16: 2 | G16: =ROUND(D6*D16+E6*E16+F6*F16,2) -> 2.00
C17: 预算执行率 | D17: 2 | E17: 2 | F17: 2 | G17: =ROUND(D6*D17+E6*E17+F6*F17,2) -> 2
C18: 资金使用 合规性 | D18: 4 | E18: 4 | F18: 4 | G18: =ROUND(D6*D18+E6*E18+F6*F18,2) -> 4.00
B19: 组织实施 | C19: 管理制度 健全性 | D19: 4.8 | E19: 4 | F19: 3.6 | G19: =ROUND(D6*D19+E6*E19+F6*F19,2) -> 4.49
C20: 制度执行 有效性 | D20: 5 | E20: 4 | F20: 3.6 | G20: =ROUND(D6*D20+E6*E20+F6*F20,2) -> 4.62
A21: 产出 | B21: 产出数量 | C21: 实际完成率 | D21: 5 | E21: 5 | F21: 5 | G21: =ROUND(D21*D6+E21*E6+F21*F6,2) -> 5
C22: 数量变动率 | D22: 5 | E22: 5 | F22: 5 | G22: =ROUND(D22*D6+E22*E6+F22*F6,2) -> 5
B23: 产出质量 | C23: 质量达标率 | D23: 5 | E23: 5 | F23: 5 | G23: =ROUND(D23*D6+E23*E6+F23*F6,2) -> 5
B24: 产出时效 | C24: 完成及时率 | D24: 5 | E24: 5 | F24: 5 | G24: =ROUND(D24*D6+E24*E6+F24*F6,2) -> 5
B25: 产出成本 | C25: 成本节约率 | D25: 5 | E25: 5 | F25: 5 | G25: =ROUND(D25*D6+E25*E6+F25*F6,2) -> 5
A26: 效益 | B26: 项目效益 | C26: 经济效益 | D26: 0 | E26: 0 | F26: 5 | G26: =ROUND(D26*D6+E26*E6+F26*F6,2) -> 0.29
C27: 社会效益 | D27: 25 | E27: 25 | F27: 20 | G27: =ROUND(D27*D6+E27*E6+F27*F6,2) -> 24.71
C28: 生态效益 | D28: 0 | E28: 0 | F28: 0 | G28: =ROUND(D28*D6+E28*E6+F28*F6,2) -> 0
B29: 可持续性影响 | C29: 政策 可持续性 | D29: 1 | E29: 1 | F29: 1 | G29: =ROUND(D29*D6+E29*E6+F29*F6,2) -> 1.00
C30: 项目发展机制可持续性 | D30: 1 | E30: 1 | F30: 1 | G30: =ROUND(D30*D6+E30*E6+F30*F6,2) -> 1
B31: 满意度 | C31: 满意度 | D31: 8 | E31: 8 | F31: 8 | G31: =ROUND(D31*D6+E31*E6+F31*F6,2) -> 8
A32: 合计 | D32: =SUM(D10:D31) -> 94.05 | E32: =SUM(E10:E31) -> 92 | F32: =SUM(F10:F31) -> 92.4 | G32: =SUM(G10:G31) -> 93.34
A33: 得分 | D33: =ROUND(D32*D6,2) -> 60.46 | E33: =ROUND(E32*E6,2) -> 27.6 | F33: =ROUND(F32*F6,2) -> 5.28 | G33: =SUM(D33:F33) -> 93.34
